fUSD/lending_fUSD_20250103
["ID","MTS","AMOUNT","RATE_DAILY","PERIOD"]
[347518483,1735899052376,-500.0,9.269e-05,2]
[347518484,1735899052385,-502.15683049,9.269e-05,2]
[347518485,1735899052394,-500.0,9.269e-05,2]
[347518486,1735899052404,-500.0,9.269e-05,2]
[347518487,1735899052413,-1321.31,9.269e-05,2]
[347518488,1735899052422,-1443.88,9.269e-05,2]
[347518489,1735899052431,-500.0,9.269e-05,2]
[347518490,1735899052441,-501.28449635,9.269e-05,2]
[347518491,1735899052450,-500.0,9.269e-05,2]
[347518492,1735899052459,-1441.56,9.269e-05,2]
[347518493,1735899052469,-501.9587472,9.269e-05,2]
[347518494,1735899052478,-1131.48,9.269e-05,2]
[347518495,1735899052487,-500.0,9.269e-05,2]
[347518496,1735899052496,-500.0,9.269e-05,2]
[347518497,1735899052506,-570.26326184,9.269e-05,2]
[347518498,1735899052515,-616.56993068,9.269e-05,2]
[347518499,1735899052525,-500.0,9.269e-05,2]
[347518500,1735899052534,-507.01333084,9.269e-05,2]
[347518501,1735899052543,-500.0,9.269e-05,2]
[347518502,1735899052552,-500.0,9.269e-05,2]
[347518503,1735899052561,-500.0,9.269e-05,2]
[347518504,1735899052571,-500.0,9.269e-05,2]
[347518505,1735899052580,-500.0,9.269e-05,2]
[347518506,1735899052589,-626.0965722,9.269e-05,2]
[347518507,1735899052598,-500.0,9.269e-05,2]
[347518508,1735899052607,-539.73,9.269e-05,2]
[347518509,1735899052617,-943.53,9.269e-05,2]
[347518510,1735899052626,-500.0,9.269e-05,2]
[347518511,1735899052635,-795.15,9.269e-05,2]
[347518512,1735899052644,-733.64,9.269e-05,2]
[347518513,1735899052653,-522.39,9.269e-05,2]
[347518514,1735899052663,-505.55963829,9.269e-05,2]
[347518515,1735899052672,-500.0,9.269e-05,2]
[347518516,1735899052681,-522.87747856,9.269e-05,2]
[347518517,1735899052691,-500.0,9.269e-05,2]
[347518518,1735899052700,-678.68,9.269e-05,2]
[347518519,1735899052709,-1252.38,9.269e-05,2]
[347518520,1735899052719,-6525.65,9.269e-05,2]
[347518521,1735899052728,-500.0,9.269e-05,2]
[347518522,1735899052738,-500.0,9.269e-05,2]
[347518523,1735899052747,-500.0,9.269e-05,2]
[347518524,1735899052756,-585.71,9.269e-05,2]
[347518525,1735899052765,-5808.88,9.269e-05,2]
[347518526,1735899052774,-1544.27,9.269e-05,2]
[347518527,1735899052783,-500.0,9.269e-05,2]
[347518528,1735899052795,-540.89,9.269e-05,2]
[347518529,1735899052805,-573.79,9.269e-05,2]
[347518530,1735899052815,-639.11658977,9.269e-05,2]
[347518531,1735899052824,-2009.08,9.269e-05,2]
[347518532,1735899052834,-500.0,9.269e-05,2]
[347518533,1735899052843,-10175.48,9.269e-05,2]
[347518534,1735899052852,-1349.59,9.269e-05,2]
[347518535,1735899052861,-500.0,9.269e-05,2]
[347518536,1735899052872,-502.70555494,9.269e-05,2]
[347518537,1735899052882,-500.0,9.269e-05,2]
[347518538,1735899052891,-500.0,9.269e-05,2]
[347518539,1735899052900,-815.01,9.269e-05,2]
[347518540,1735899052910,-1470.99,9.269e-05,2]
[347518541,1735899052919,-500.0,9.269e-05,2]
[347518542,1735899052929,-8073.75,9.269e-05,2]
[347518543,1735899052938,-500.0,9.269e-05,2]
[347518544,1735899052948,-500.0,9.269e-05,2]
[347518545,1735899052957,-500.0,9.269e-05,2]
[347518546,1735899052967,-500.0,9.269e-05,2]
[347518547,1735899052977,-500.0,9.269e-05,2]
[347518548,1735899052986,-989.46,9.269e-05,2]
[347518549,1735899052995,-500.0,9.269e-05,2]
[347518550,1735899053005,-1117.95,9.269e-05,2]
[347518551,1735899053014,-741.62,9.269e-05,2]
[347518552,1735899053023,-500.0,9.269e-05,2]
[347518553,1735899053033,-1147.25,9.269e-05,2]
[347518554,1735899053043,-580.78,9.269e-05,2]
[347518555,1735899053052,-500.0,9.269e-05,2]
[347518556,1735899053062,-1180.98,9.269e-05,2]
[347518557,1735899053072,-500.0,9.269e-05,2]
[347518558,1735899053082,-500.0,9.269e-05,2]
[347518559,1735899053091,-500.0,9.269e-05,2]
[347518560,1735899053101,-1324.35,9.269e-05,2]
[347518561,1735899053111,-500.0,9.269e-05,2]
[347518562,1735899053121,-852.43,9.269e-05,2]
[347518563,1735899053131,-500.0,9.269e-05,2]
[347518564,1735899053140,-500.0,9.269e-05,2]
[347518565,1735899053150,-822.78,9.269e-05,2]
[347518566,1735899053159,-500.0,9.269e-05,2]
[347518567,1735899053168,-790.68,9.269e-05,2]
[347518568,1735899053178,-1625.92,9.269e-05,2]
[347518569,1735899053187,-5308.49,9.269e-05,2]
[347518570,1735899053196,-500.0,9.269e-05,2]
[347518571,1735899053205,-500.0,9.269e-05,2]
[347518572,1735899053214,-828.54,9.269e-05,2]
[347518573,1735899053223,-806.97,9.269e-05,2]
[347518574,1735899053234,-687.88,9.269e-05,2]
[347518575,1735899053243,-829.61,9.269e-05,2]
[347518576,1735899053252,-610.99,9.269e-05,2]
[347518577,1735899053261,-500.0,9.269e-05,2]
[347518578,1735899053270,-500.0,9.269e-05,2]
[347518579,1735899053279,-500.0,9.269e-05,2]
[347518580,1735899053288,-10690.6,9.269e-05,2]
[347518581,1735899053298,-606.33,9.269e-05,2]
[347518582,1735899053307,-1165.73,9.269e-05,2]
[347518583,1735899053316,-501.49769459,9.269e-05,2]
[347518584,1735899053325,-500.0,9.269e-05,2]
[347518585,1735899053334,-575.04,9.269e-05,2]
[347518586,1735899053344,-500.0,9.269e-05,2]
[347518587,1735899053353,-500.0,9.269e-05,2]
[347518588,1735899053363,-500.0,9.269e-05,2]
[347518589,1735899053372,-500.0,9.269e-05,2]
[347518590,1735899053382,-500.0,9.269e-05,2]
[347518591,1735899053393,-500.0,9.269e-05,2]
[347518592,1735899053402,-1388.52,9.269e-05,2]
[347518593,1735899053411,-516.28,9.269e-05,2]
[347518594,1735899053421,-2092.91,9.269e-05,2]
[347518595,1735899053430,-512.38,9.269e-05,2]
[347518596,1735899053439,-500.0,9.269e-05,2]
[347518597,1735899053448,-500.0,9.269e-05,2]
[347518598,1735899053458,-2516.28,9.269e-05,2]
[347518599,1735899053467,-500.0,9.269e-05,2]
[347518600,1735899053477,-1007.49,9.269e-05,2]
[347518601,1735899053486,-3486.65,9.269e-05,2]
[347518602,1735899053495,-500.0,9.269e-05,2]
[347518603,1735899053504,-913.75,9.269e-05,2]
[347518604,1735899053515,-272.29412697,9.269e-05,2]
[347518605,1735899053524,-634.62,9.269e-05,2]
[347518606,1735899053533,-500.0,9.269e-05,2]
[347518607,1735899053543,-500.0,9.269e-05,2]
[347518608,1735899053552,-905.63,9.269e-05,2]
[347518609,1735899053561,-1621.99,9.269e-05,2]
[347518610,1735899053571,-500.0,9.269e-05,2]
[347518611,1735899053581,-500.0,9.269e-05,2]
[347518612,1735899053590,-1629.01,9.269e-05,2]
[347518613,1735899053601,-500.0,9.269e-05,2]
[347518614,1735899053611,-500.0,9.269e-05,2]
[347518615,1735899053622,-669.85,9.269e-05,2]
[347518616,1735899053632,-824.39,9.269e-05,2]
[347518617,1735899053643,-500.0,9.269e-05,2]
[347518618,1735899053652,-500.0,9.269e-05,2]
[347518619,1735899053662,-836.84,9.269e-05,2]
[347518620,1735899053671,-664.81,9.269e-05,2]
[347518621,1735899053680,-673.1,9.269e-05,2]
[347518622,1735899053690,-500.0,9.269e-05,2]
[347518623,1735899053699,-500.0,9.269e-05,2]
[347518624,1735899053708,-500.0,9.269e-05,2]
[347518625,1735899053718,-195.17,9.269e-05,2]
[347518626,1735899053729,-1595.45,9.269e-05,2]
[347518627,1735899053738,-500.0,9.269e-05,2]
[347518628,1735899053747,-785.12,9.269e-05,2]
[347518629,1735899053757,-563.48773912,9.269e-05,2]
[347518630,1735899053766,-1779.33,9.269e-05,2]
[347518631,1735899053972,-603.63,9.269e-05,2]
[347518632,1735899053990,-1071.75,9.269e-05,2]
[347518633,1735899054000,-938.09,9.269e-05,2]
[347518634,1735899054009,-1353.46,9.269e-05,2]
[347518635,1735899054019,-1071.46,9.269e-05,2]
[347518636,1735899054029,-500.0,9.269e-05,2]
[347518637,1735899054040,-713.7,9.269e-05,2]
[347518638,1735899054049,-1422.94,9.269e-05,2]
[347518639,1735899054058,-645.64671254,9.269e-05,2]
[347518640,1735899054068,-593.7,9.269e-05,2]
[347518641,1735899054078,-1609.12,9.269e-05,2]
[347518642,1735899054087,-2920.91,9.269e-05,2]
[347518643,1735899054096,-500.0,9.269e-05,2]
[347518644,1735899054106,-175.66420089,9.269e-05,2]
[347518645,1735899054115,-2451.94,9.269e-05,2]
[347518646,1735899054125,-227.05140426,9.269e-05,2]
[347518647,1735899054134,-1714.79,9.269e-05,2]
[347518648,1735899054143,-500.0,9.269e-05,2]
[347518649,1735899054153,-500.0,9.269e-05,2]
[347518650,1735899054162,-1456.42,9.269e-05,2]
[347518651,1735899054171,-500.0,9.269e-05,2]
[347518652,1735899054180,-500.0,9.269e-05,2]
[347518653,1735899054190,-284.32763586,9.269e-05,2]
[347518654,1735899054200,-1419.9,9.269e-05,2]
[347518655,1735899054209,-1068.93,9.269e-05,2]
[347518656,1735899054218,-1288.57,9.269e-05,2]
[347518657,1735899054228,-5075.92,9.269e-05,2]
[347518658,1735899054238,-2262.99,9.269e-05,2]
[347518659,1735899054247,-500.0,9.269e-05,2]
[347518660,1735899054257,-1580.76,9.269e-05,2]
[347518661,1735899054266,-500.0,9.269e-05,2]
[347518662,1735899054276,-500.0,9.269e-05,2]
[347518663,1735899054285,-500.0,9.269e-05,2]
[347518664,1735899054294,-1076.28,9.269e-05,2]
[347518665,1735899054304,-1094.84,9.269e-05,2]
[347518666,1735899054312,-1851.28,9.269e-05,2]
[347518667,1735899054322,-617.8764259,9.269e-05,2]
[347518668,1735899054331,-1346.81,9.269e-05,2]
[347518669,1735899054341,-500.0,9.269e-05,2]
[347518670,1735899054350,-500.0,9.269e-05,2]
[347518671,1735899054359,-500.0,9.269e-05,2]
[347518672,1735899054369,-5395.21,9.269e-05,2]
[347518673,1735899054379,-2187.74,9.269e-05,2]
[347518674,1735899054389,-500.0,9.269e-05,2]
[347518675,1735899054398,-500.0,9.269e-05,2]
[347518676,1735899054408,-1083.27,9.269e-05,2]
[347518677,1735899054417,-909.34,9.269e-05,2]
[347518678,1735899054427,-991.2,9.269e-05,2]
[347518679,1735899054436,-4382.33,9.269e-05,2]
[347518680,1735899054446,-810.22,9.269e-05,2]
[347518681,1735899054455,-2463.78,9.269e-05,2]
[347518682,1735899054464,-500.0,9.269e-05,2]
[347518683,1735899054473,-505.48,9.269e-05,2]
[347518684,1735899054484,-1511.93,9.269e-05,2]
[347518685,1735899054493,-713.42,9.269e-05,2]
[347518686,1735899054503,-681.82,9.269e-05,2]
[347518687,1735899054512,-500.0,9.269e-05,2]
[347518688,1735899054521,-1729.67,9.269e-05,2]
[347518689,1735899054530,-500.0,9.269e-05,2]
[347518690,1735899054539,-1890.41,9.269e-05,2]
[347518691,1735899054550,-861.91,9.269e-05,2]
[347518692,1735899054559,-500.0,9.269e-05,2]
[347518693,1735899054567,-623.27,9.269e-05,2]
[347518694,1735899054577,-2615.61,9.269e-05,2]
[347518695,1735899054586,-500.0,9.269e-05,2]
[347518696,1735899054595,-928.04,9.269e-05,2]
[347518697,1735899054604,-1603.33,9.269e-05,2]
[347518698,1735899054613,-1790.99,9.269e-05,2]
[347518699,1735899054623,-500.0,9.269e-05,2]
[347518700,1735899054632,-1181.17,9.269e-05,2]
[347518701,1735899054642,-5029.15,9.269e-05,2]
[347518702,1735899054652,-900.44,9.269e-05,2]
[347518703,1735899054661,-221.54316926,9.269e-05,2]
[347518704,1735899054673,-500.0,9.269e-05,2]
[347518705,1735899054683,-659.5,9.269e-05,2]
[347518706,1735899054695,-500.0,9.269e-05,2]
[347518707,1735899054705,-1537.5,9.269e-05,2]
[347518708,1735899054714,-518.18,9.269e-05,2]
[347518709,1735899054723,-500.0,9.269e-05,2]
[347518710,1735899054734,-1052.56,9.269e-05,2]
[347518711,1735899054744,-1221.8,9.269e-05,2]
[347518712,1735899054753,-1221.9,9.269e-05,2]
[347518713,1735899054763,-703.29,9.269e-05,2]
[347518714,1735899054772,-500.0,9.269e-05,2]
[347518715,1735899054782,-1568.73,9.269e-05,2]
[347518716,1735899054791,-500.0,9.269e-05,2]
[347518717,1735899054806,-770.89,9.269e-05,2]
[347518718,1735899054815,-2864.54,9.269e-05,2]
[347518719,1735899054824,-2550.83,9.269e-05,2]
[347518720,1735899054834,-500.0,9.269e-05,2]
[347518721,1735899054845,-1309.1,9.269e-05,2]
[347518722,1735899054855,-3808.66,9.269e-05,2]
[347518723,1735899054864,-500.0,9.269e-05,2]
[347518724,1735899054874,-500.0,9.269e-05,2]
[347518725,1735899054885,-619.32,9.269e-05,2]
[347518726,1735899054894,-1171.02,9.269e-05,2]
[347518727,1735899054904,-536.96592351,9.269e-05,2]
[347518728,1735899054913,-500.0,9.269e-05,2]
[347518729,1735899054922,-500.0,9.269e-05,2]
[347518730,1735899054932,-8958.03,9.269e-05,2]
[347518731,1735899054941,-506.17918771,9.269e-05,2]
[347518732,1735899054950,-500.0,9.269e-05,2]
[347518733,1735899054960,-830.69,9.269e-05,2]
[347518734,1735899054969,-1117.28,9.269e-05,2]
[347518735,1735899054980,-2517.45,9.269e-05,2]
[347518736,1735899054989,-6689.28,9.269e-05,2]
[347518737,1735899054999,-1560.18,9.269e-05,2]
[347518738,1735899055009,-500.0,9.269e-05,2]
[347518739,1735899055018,-500.0,9.269e-05,2]
[347518740,1735899055027,-991.98,9.269e-05,2]
[347518741,1735899055037,-991.98,9.269e-05,2]
[347518742,1735899055046,-724.73,9.269e-05,2]
[347518743,1735899055056,-1050.38,9.269e-05,2]
[347518744,1735899055065,-429.3,9.269e-05,2]
[347518745,1735899055075,-364.40946575,9.269e-05,2]
[347518746,1735899055085,-1375.52,9.269e-05,2]
[347518747,1735899055094,-1375.52,9.269e-05,2]
[347518748,1735899055104,-1077.33,9.269e-05,2]
[347518749,1735899055117,-500.0,9.269e-05,2]
[347518750,1735899055127,-3636.71,9.269e-05,2]
[347518751,1735899055138,-501.64238515,9.269e-05,2]
[347518752,1735899055147,-1529.69,9.269e-05,2]
[347518753,1735899055157,-1098.71,9.269e-05,2]
[347518754,1735899055167,-2285.33,9.269e-05,2]
[347518755,1735899055177,-1913.18,9.269e-05,2]
[347518756,1735899055187,-1082.25,9.269e-05,2]
[347518757,1735899055197,-500.0,9.269e-05,2]
[347518758,1735899055207,-1277.18,9.269e-05,2]
[347518759,1735899055217,-500.0,9.269e-05,2]
[347518760,1735899055227,-499.98,9.269e-05,2]
[347518761,1735899055238,-152.78,9.269e-05,2]
[347518762,1735899055248,-1029.72,9.27e-05,2]
[347518763,1735899055258,-500.0,9.27e-05,2]
[347518764,1735899055268,-798.98,9.27e-05,2]
[347518765,1735899055278,-882.59,9.27e-05,2]
[347518766,1735899055287,-500.0,9.27e-05,2]
[347518767,1735899055297,-612.21,9.27e-05,2]
[347518768,1735899055307,-500.0,9.27e-05,2]
[347518769,1735899055318,-500.0,9.27e-05,2]
[347518770,1735899055328,-613.58,9.27e-05,2]
[347518771,1735899055338,-500.0,9.27e-05,2]
[347518772,1735899055347,-422.25488864,9.27e-05,2]
[347518773,1735899055357,-595.83,9.27e-05,2]
[347518774,1735899055367,-500.0,9.27e-05,2]
[347518775,1735899055376,-679.99,9.27e-05,2]
[347518776,1735899055386,-500.0,9.27e-05,2]
[347518777,1735899055396,-675.44,9.27e-05,2]
[347518778,1735899055408,-1018.47,9.27e-05,2]
[347518779,1735899055419,-602.59,9.27e-05,2]
[347518780,1735899055430,-500.0,9.27e-05,2]
[347518781,1735899055440,-500.0,9.27e-05,2]
[347518782,1735899055450,-2186.36,9.27e-05,2]
[347518783,1735899055459,-1190.28,9.27e-05,2]
[347518784,1735899055469,-503.66847556,9.27e-05,2]
[347518785,1735899055479,-1344.27,9.27e-05,2]
[347518786,1735899055489,-500.0,9.27e-05,2]
[347518787,1735899055499,-500.0,9.27e-05,2]
[347518788,1735899055508,-1189.45,9.27e-05,2]
[347518789,1735899055518,-500.0,9.27e-05,2]
[347518790,1735899055528,-1005.51,9.27e-05,2]
[347518791,1735899055537,-871.65,9.27e-05,2]
[347518792,1735899055547,-1819.57,9.27e-05,2]
[347518793,1735899055557,-500.0,9.27e-05,2]
[347518794,1735899055566,-500.0,9.27e-05,2]
[347518795,1735899055576,-500.0,9.27e-05,2]
[347518796,1735899055587,-500.0,9.27e-05,2]
[347518797,1735899055596,-500.0,9.27e-05,2]
[347518798,1735899055606,-825.05,9.27e-05,2]
[347518799,1735899055616,-686.33,9.27e-05,2]
[347518800,1735899055626,-1411.86,9.27e-05,2]
[347518801,1735899055637,-500.0,9.27e-05,2]
[347518802,1735899055646,-968.58,9.27e-05,2]
[347518803,1735899055655,-630.92,9.27e-05,2]
[347518804,1735899055667,-1681.53,9.27e-05,2]
[347518805,1735899055678,-500.0,9.27e-05,2]
[347518806,1735899055688,-642.45,9.27e-05,2]
[347518807,1735899055698,-571.21,9.27e-05,2]
[347518808,1735899055708,-991.98,9.27e-05,2]
[347518809,1735899055718,-1375.52,9.27e-05,2]
[347518810,1735899055727,-1438.18,9.271e-05,2]
[347518811,1735899055737,-1063.23,9.271e-05,2]
[347518812,1735899055746,-946.14,9.271e-05,2]
[347518813,1735899055756,-1612.52,9.271e-05,2]
[347518814,1735899055766,-4413.73,9.271e-05,2]
[347518815,1735899055775,-2563.85,9.271e-05,2]
[347518816,1735899055784,-3868.2,9.271e-05,2]
[347518817,1735899055794,-9530.66,9.271e-05,2]
[347518818,1735899055808,-1104.06,9.271e-05,2]
[347518819,1735899055818,-1616.42,9.271e-05,2]
[347518820,1735899055827,-500.0,9.271e-05,2]
[347518821,1735899055837,-5700.94,9.271e-05,2]
[347518822,1735899055846,-1344.22,9.271e-05,2]
[347518823,1735899055856,-1684.4,9.271e-05,2]
[347518824,1735899055866,-3955.13,9.271e-05,2]
[347518825,1735899055879,-500.0,9.271e-05,2]
[347518826,1735899055889,-3036.34,9.271e-05,2]
[347518827,1735899055898,-2680.62,9.271e-05,2]
[347518828,1735899055909,-2064.58,9.271e-05,2]
[347518829,1735899055919,-2494.75,9.271e-05,2]
[347518830,1735899055929,-2104.05,9.271e-05,2]
[347518831,1735899055939,-991.98,9.271e-05,2]
[347518832,1735899055951,-1375.52,9.271e-05,2]
[347518833,1735899055961,-1375.52,9.271e-05,2]
[347518834,1735899055970,-150.0,9.318e-05,2]
[347518835,1735899055982,-150.0,9.318e-05,2]
[347518836,1735899055991,-150.0,9.318e-05,2]
[347518837,1735899056002,-901.61,9.339e-05,2]
[347518838,1735899056012,-1000.0,9.451e-05,2]
[347518839,1735899056022,-311.624,9.48e-05,2]
[347518840,1735899056032,-150.0,9.481e-05,2]
[347518841,1735899056041,-1094.62,9.54e-05,2]
[347518842,1735899056050,-5519.88,9.54e-05,2]
[347518843,1735899056060,-8601.42,9.54e-05,2]
[347518844,1735899056069,-4538.46,9.54e-05,2]
[347518845,1735899056079,-5336.48,9.54e-05,2]
[347518846,1735899056091,-1921.95,9.54e-05,2]
[347518847,1735899056101,-8397.78,9.54e-05,2]
[347518848,1735899056110,-935.4,9.54e-05,2]
[347518849,1735899056120,-587.29,9.54e-05,2]
[347518850,1735899056129,-3088.2,9.54e-05,2]
[347518851,1735899056139,-2714.05,9.54e-05,2]
[347518852,1735899056148,-565.9,9.54e-05,2]
[347518853,1735899056158,-1297.19,9.54e-05,2]
[347518854,1735899056168,-500.0,9.541e-05,2]
[347518855,1735899056178,-577.59,9.541e-05,2]
[347518856,1735899056187,-500.0,9.541e-05,2]
[347518857,1735899056198,-645.02,9.541e-05,2]
[347518858,1735899056207,-726.27,9.541e-05,2]
[347518859,1735899056217,-500.0,9.541e-05,2]
[347518860,1735899056227,-829.14,9.541e-05,2]
[347518861,1735899056236,-1142.1,9.541e-05,2]
[347518862,1735899056246,-500.0,9.541e-05,2]
[347518863,1735899056256,-1109.54,9.541e-05,2]
[347518864,1735899056265,-1942.66,9.541e-05,2]
[347518865,1735899056277,-500.0,9.541e-05,2]
[347518866,1735899056288,-500.0,9.541e-05,2]
[347518867,1735899056298,-500.0,9.541e-05,2]
[347518868,1735899056308,-500.0,9.541e-05,2]
[347518869,1735899056318,-683.56,9.541e-05,2]
[347518870,1735899056329,-1012.61,9.541e-05,2]
[347518871,1735899056341,-1140.29,9.541e-05,2]
[347518872,1735899056350,-500.0,9.541e-05,2]
[347518873,1735899056359,-500.0,9.541e-05,2]
[347518874,1735899056369,-2278.61,9.541e-05,2]
[347518875,1735899056378,-500.0,9.541e-05,2]
[347518876,1735899056388,-932.47,9.541e-05,2]
[347518877,1735899056398,-500.0,9.541e-05,2]
[347518878,1735899056407,-563.98,9.541e-05,2]
[347518879,1735899056416,-1971.07,9.541e-05,2]
[347518880,1735899056425,-500.0,9.541e-05,2]
[347518881,1735899056518,-868.76,9.541e-05,2]
[347518882,1735899056527,-675.57,9.541e-05,2]
[347518883,1735899056536,-500.0,9.541e-05,2]
[347518884,1735899056545,-500.0,9.541e-05,2]
[347518885,1735899056554,-1949.24,9.541e-05,2]
[347518886,1735899056563,-500.0,9.541e-05,2]
[347518887,1735899056572,-500.0,9.541e-05,2]
[347518888,1735899056581,-1022.48,9.541e-05,2]
[347518889,1735899056590,-500.0,9.541e-05,2]
[347518890,1735899056599,-500.0,9.541e-05,2]
[347518891,1735899056608,-1644.67,9.541e-05,2]
[347518892,1735899056617,-1142.02,9.541e-05,2]
[347518893,1735899056626,-589.18,9.541e-05,2]
[347518894,1735899056635,-500.0,9.541e-05,2]
[347518895,1735899056644,-894.74,9.541e-05,2]
[347518896,1735899056653,-1175.17,9.541e-05,2]
[347518897,1735899056662,-500.0,9.541e-05,2]
[347518898,1735899056671,-1975.39,9.541e-05,2]
[347518899,1735899056680,-1210.29,9.541e-05,2]
[347518900,1735899056690,-1116.18,9.541e-05,2]
[347518901,1735899056699,-638.87221425,9.541e-05,2]
[347518902,1735899056707,-500.0,9.541e-05,2]
[347518903,1735899056716,-620.25780102,9.541e-05,2]
[347518904,1735899056725,-1173.56,9.541e-05,2]
[347518905,1735899056735,-500.0,9.541e-05,2]
[347518906,1735899056743,-577.12,9.541e-05,2]
[347518907,1735899056752,-500.0,9.541e-05,2]
[347518908,1735899056761,-500.0,9.541e-05,2]
[347518909,1735899056770,-600.51,9.541e-05,2]
[347518910,1735899056779,-519.15,9.541e-05,2]
[347518911,1735899056788,-500.0,9.541e-05,2]
[347518912,1735899056798,-500.0,9.541e-05,2]
[347518913,1735899056813,-500.0,9.541e-05,2]
[347518914,1735899056822,-739.18,9.541e-05,2]
[347518915,1735899056832,-500.0,9.541e-05,2]
[347518916,1735899056840,-869.67,9.541e-05,2]
[347518917,1735899056851,-500.0,9.541e-05,2]
[347518918,1735899056860,-1873.32,9.541e-05,2]
[347518919,1735899056869,-500.0,9.541e-05,2]
[347518920,1735899056879,-500.0,9.541e-05,2]
[347518921,1735899056888,-500.0,9.541e-05,2]
[347518922,1735899056898,-867.14,9.541e-05,2]
[347518923,1735899056907,-1378.53,9.541e-05,2]
[347518924,1735899056916,-500.0,9.541e-05,2]
[347518925,1735899056925,-500.0,9.541e-05,2]
[347518926,1735899056933,-500.0,9.541e-05,2]
[347518927,1735899056942,-500.0,9.541e-05,2]
[347518928,1735899056951,-500.0,9.541e-05,2]
[347518929,1735899056960,-750.91,9.541e-05,2]
[347518930,1735899056969,-500.0,9.541e-05,2]
[347518931,1735899056978,-500.0,9.541e-05,2]
[347518932,1735899056988,-2478.91,9.541e-05,2]
[347518933,1735899056998,-500.0,9.541e-05,2]
[347518934,1735899057007,-500.0,9.541e-05,2]
[347518935,1735899057017,-500.0,9.541e-05,2]
[347518936,1735899057026,-376.23653914,9.541e-05,2]
[347518937,1735899057036,-500.0,9.541e-05,2]
[347518938,1735899057045,-2210.58,9.541e-05,2]
[347518939,1735899057055,-500.0,9.541e-05,2]
[347518940,1735899057065,-500.0,9.541e-05,2]
[347518941,1735899057075,-500.0,9.541e-05,2]
[347518942,1735899057085,-534.88,9.541e-05,2]
[347518943,1735899057095,-639.75,9.541e-05,2]
[347518944,1735899057105,-500.0,9.541e-05,2]
[347518945,1735899057114,-1309.77,9.541e-05,2]
[347518946,1735899057124,-500.0,9.541e-05,2]
[347518947,1735899057133,-500.0,9.541e-05,2]
[347518948,1735899057142,-376.76392004,9.541e-05,2]
[347518949,1735899057151,-500.0,9.541e-05,2]
[347518950,1735899057160,-500.0,9.541e-05,2]
[347518951,1735899057170,-636.37,9.541e-05,2]
[347518952,1735899057180,-500.0,9.541e-05,2]
[347518953,1735899057189,-1498.0,9.541e-05,2]
[347518954,1735899057198,-500.0,9.541e-05,2]
[347518955,1735899057208,-500.0,9.541e-05,2]
[347518956,1735899057218,-2334.84,9.541e-05,2]
[347518957,1735899057227,-593.46,9.541e-05,2]
[347518958,1735899057238,-500.0,9.541e-05,2]
[347518959,1735899057247,-500.0,9.541e-05,2]
[347518960,1735899057257,-797.27,9.541e-05,2]
[347518961,1735899057267,-500.0,9.541e-05,2]
[347518962,1735899057276,-500.0,9.541e-05,2]
[347518963,1735899057286,-500.0,9.541e-05,2]
[347518964,1735899057295,-500.0,9.541e-05,2]
[347518965,1735899057304,-500.0,9.541e-05,2]
[347518966,1735899057316,-622.07481364,9.541e-05,2]
[347518967,1735899057325,-997.48,9.541e-05,2]
[347518968,1735899057335,-749.14,9.541e-05,2]
[347518969,1735899057344,-500.0,9.541e-05,2]
[347518970,1735899057354,-895.35,9.541e-05,2]
[347518971,1735899057363,-1182.52,9.541e-05,2]
[347518972,1735899057373,-541.95,9.541e-05,2]
[347518973,1735899057382,-504.78,9.541e-05,2]
[347518974,1735899057392,-704.61,9.541e-05,2]
[347518975,1735899057401,-933.92,9.541e-05,2]
[347518976,1735899057410,-1126.99,9.541e-05,2]
[347518977,1735899057419,-500.0,9.541e-05,2]
[347518978,1735899057428,-1257.34,9.541e-05,2]
[347518979,1735899057437,-641.11,9.541e-05,2]
[347518980,1735899057447,-642.42,9.541e-05,2]
[347518981,1735899057456,-564.16,9.541e-05,2]
[347518982,1735899057465,-2527.17,9.541e-05,2]